[Event "*** SCC Grand Prix: Titled Tuesday Blitz"]
[Site "Chess.com"]
[Date "2020.08.11"]
[Round "6"]
[White "FMJoseHerrera"]
[Black "Alexander_Moskalenko"]
[Result "0-1"]
[WhiteElo "2513"]
[BlackElo "2841"]
[TimeControl "180+1"]
[EndTime "11:05:39 PDT"]
[Termination "Alexander_Moskalenko won on time"]

1. Nf3 {[%clk 0:03:00.9]} 1... g6 {[%clk 0:02:57.4]} 2. g3 {[%clk 0:03:01.1]}
2... Bg7 {[%clk 0:02:58.2]} 3. Bg2 {[%clk 0:03:01.7]} 3... f5 {[%clk 0:02:59.1]}
4. d3 {[%clk 0:03:02.3]} 4... Nf6 {[%clk 0:02:59.8]} 5. Nc3 {[%clk 0:03:02.8]}
5... d5 {[%clk 0:02:59.5]} 6. h4 {[%clk 0:03:03.3]} 6... d4 {[%clk 0:02:55.4]}
7. Nb1 {[%clk 0:03:03.2]} 7... Nc6 {[%clk 0:02:50.8]} 8. h5 {[%clk 0:03:03.1]}
8... Nxh5 {[%clk 0:02:50.5]} 9. Bg5 {[%clk 0:03:03.1]} 9... Nf6 {[%clk
0:02:49.2]} 10. Bh6 {[%clk 0:03:02.4]} 10... Bxh6 {[%clk 0:02:48]} 11. Rxh6
{[%clk 0:03:03.3]} 11... e5 {[%clk 0:02:48]} 12. Na3 {[%clk 0:03:02.4]} 12...
Be6 {[%clk 0:02:47.4]} 13. Qd2 {[%clk 0:02:58.4]} 13... Qd7 {[%clk 0:02:42.4]}
14. Ng5 {[%clk 0:02:48.5]} 14... Bd5 {[%clk 0:02:40.4]} 15. f3 {[%clk
0:02:33.3]} 15... O-O-O {[%clk 0:02:35.6]} 16. c4 {[%clk 0:02:27.1]} 16... dxc3
{[%clk 0:02:34.7]} 17. bxc3 {[%clk 0:02:28]} 17... Qg7 {[%clk 0:02:11]} 18. Rh4
{[%clk 0:01:25.2]} 18... h6 {[%clk 0:02:09.5]} 19. Nh3 {[%clk 0:01:25.6]} 19...
e4 {[%clk 0:02:09.3]} 20. fxe4 {[%clk 0:01:21.6]} 20... fxe4 {[%clk 0:02:08.5]}
21. Nf2 {[%clk 0:00:53]} 21... g5 {[%clk 0:02:04.7]} 22. Rxe4 {[%clk 0:00:49.9]}
22... Bxe4 {[%clk 0:02:04.1]} 23. Nxe4 {[%clk 0:00:50.8]} 23... Nxe4 {[%clk
0:01:58.3]} 24. Bxe4 {[%clk 0:00:51.7]} 24... Rhe8 {[%clk 0:01:58.8]} 25. Bxc6
{[%clk 0:00:41.1]} 25... bxc6 {[%clk 0:01:59.7]} 26. Nc4 {[%clk 0:00:41.2]}
26... Qf7 {[%clk 0:01:54.1]} 27. Qc2 {[%clk 0:00:27.7]} 27... Qe6 {[%clk
0:01:48.7]} 28. O-O-O {[%clk 0:00:26.4]} 28... Qxe2 {[%clk 0:01:47.7]} 29. Qa4
{[%clk 0:00:27.1]} 29... Rxd3 {[%clk 0:01:37.4]} 30. Rxd3 {[%clk 0:00:13.9]}
30... Qxd3 {[%clk 0:01:36.9]} 31. Qxc6 {[%clk 0:00:14.2]} 31... Re1+ {[%clk
0:01:34.1]} 32. Kb2 {[%clk 0:00:14.3]} 32... Rb1+ {[%clk 0:01:34.2]} 33. Ka3
{[%clk 0:00:13.9]} 33... Qxc3+ {[%clk 0:01:35.1]} 0-1

[Event "*** SCC Grand Prix: Titled Tuesday Blitz"]
[Site "Chess.com"]
[Date "2020.08.11"]
[Round "6"]
[White "TurboSteen"]
[Black "Xeniya2005"]
[Result "0-1"]
[WhiteElo "2015"]
[BlackElo "2359"]
[TimeControl "180+1"]
[EndTime "11:05:40 PDT"]
[Termination "Xeniya2005 won by resignation"]

1. e4 {[%clk 0:03:00.9]} 1... e6 {[%clk 0:02:59.1]} 2. d4 {[%clk 0:02:51.1]}
2... d5 {[%clk 0:02:59.5]} 3. Bd3 {[%clk 0:02:38.9]} 3... dxe4 {[%clk
0:02:58.3]} 4. Bxe4 {[%clk 0:02:36.7]} 4... Nf6 {[%clk 0:02:58.6]} 5. Bf3 {[%clk
0:02:35.7]} 5... c5 {[%clk 0:02:56.8]} 6. Ne2 {[%clk 0:02:33.5]} 6... cxd4
{[%clk 0:02:55.4]} 7. Qxd4 {[%clk 0:02:20.3]} 7... Qxd4 {[%clk 0:02:50.4]} 8.
Nxd4 {[%clk 0:02:18.6]} 8... Bc5 {[%clk 0:02:49.8]} 9. Be3 {[%clk 0:02:13.4]}
9... O-O {[%clk 0:02:35.4]} 10. Nc3 {[%clk 0:02:10.1]} 10... a6 {[%clk
0:02:28.6]} 11. O-O-O {[%clk 0:01:58.6]} 11... Nbd7 {[%clk 0:02:25.7]} 12. Rhe1
{[%clk 0:01:43.9]} 12... Ne5 {[%clk 0:02:16.2]} 13. Be2 {[%clk 0:01:37.7]} 13...
Neg4 {[%clk 0:01:58.9]} 14. Bxg4 {[%clk 0:01:25.3]} 14... Nxg4 {[%clk
0:01:53.7]} 15. f3 {[%clk 0:01:25.1]} 15... Nxe3 {[%clk 0:01:50.7]} 16. Rxe3
{[%clk 0:01:23.6]} 16... Bd7 {[%clk 0:01:48.6]} 17. Red3 {[%clk 0:01:17.6]}
17... Rac8 {[%clk 0:01:34.7]} 18. Nb3 {[%clk 0:01:15.7]} 18... Be8 {[%clk
0:01:23.7]} 19. Rd8 {[%clk 0:01:02.6]} 19... Be3+ {[%clk 0:01:18.4]} 20. Kb1
{[%clk 0:00:57.8]} 20... Bc6 {[%clk 0:01:17.6]} 21. Rxc8 {[%clk 0:00:52.8]}
21... Rxc8 {[%clk 0:01:16.5]} 22. Na5 {[%clk 0:00:53.2]} 22... Bb6 {[%clk
0:01:03]} 23. Nxc6 {[%clk 0:00:51.4]} 23... bxc6 {[%clk 0:01:02.5]} 24. Ne4
{[%clk 0:00:49.5]} 24... Kf8 {[%clk 0:01:01.2]} 25. c4 {[%clk 0:00:46.6]} 25...
Ke7 {[%clk 0:00:59]} 26. c5 {[%clk 0:00:44.4]} 26... Bc7 {[%clk 0:00:58]} 27.
Nd6 {[%clk 0:00:42.6]} 27... Rd8 {[%clk 0:00:57.1]} 28. Kc2 {[%clk 0:00:33.4]}
28... Bxd6 {[%clk 0:00:56.5]} 29. cxd6+ {[%clk 0:00:31.9]} 29... Rxd6 {[%clk
0:00:57.4]} 0-1

[Event "*** SCC Grand Prix: Titled Tuesday Blitz"]
[Site "Chess.com"]
[Date "2020.08.11"]
[Round "6"]
[White "MNyuyu"]
[Black "Mikhail_Golubev"]
[Result "1-0"]
[WhiteElo "2343"]
[BlackElo "2569"]
[TimeControl "180+1"]
[EndTime "11:05:41 PDT"]
[Termination "MNyuyu won on time"]

1. d4 {[%clk 0:03:00.9]} 1... Nf6 {[%clk 0:02:59.2]} 2. Bg5 {[%clk 0:02:59.7]}
2... Ne4 {[%clk 0:02:58.6]} 3. Bf4 {[%clk 0:02:59.4]} 3... c5 {[%clk 0:02:58.4]}
4. d5 {[%clk 0:02:59]} 4... Qb6 {[%clk 0:02:54.3]} 5. Nd2 {[%clk 0:02:58.4]}
5... Qxb2 {[%clk 0:02:53.2]} 6. Nxe4 {[%clk 0:02:58]} 6... Qb4+ {[%clk 0:02:53]}
7. c3 {[%clk 0:02:58.2]} 7... Qxe4 {[%clk 0:02:52.3]} 8. e3 {[%clk 0:02:58.3]}
8... e6 {[%clk 0:02:47.6]} 9. dxe6 {[%clk 0:02:49.5]} 9... fxe6 {[%clk 0:02:45]}
10. Nf3 {[%clk 0:02:34.2]} 10... Nc6 {[%clk 0:02:44.3]} 11. Bd3 {[%clk
0:02:33.4]} 11... Qd5 {[%clk 0:02:41]} 12. Qc2 {[%clk 0:02:12.8]} 12... Qh5
{[%clk 0:01:36.4]} 13. h3 {[%clk 0:02:03.4]} 13... c4 {[%clk 0:01:31]} 14. Bxc4
{[%clk 0:01:56.9]} 14... Bc5 {[%clk 0:01:16.6]} 15. Bd3 {[%clk 0:01:55.9]} 15...
O-O {[%clk 0:00:52]} 16. g4 {[%clk 0:01:50.7]} 16... Qd5 {[%clk 0:00:51.6]} 17.
Bxh7+ {[%clk 0:01:43.5]} 17... Kh8 {[%clk 0:00:51.6]} 18. Be4 {[%clk 0:01:42.7]}
18... Qc4 {[%clk 0:00:51.5]} 19. Ng5 {[%clk 0:01:37.9]} 19... Rf6 {[%clk
0:00:06.9]} 20. Bd5 {[%clk 0:01:26.6]} 20... Qxc3+ {[%clk 0:00:02.5]} 21. Qxc3
{[%clk 0:01:25.5]} 21... Bb4 {[%clk 0:00:03]} 22. Qxb4 {[%clk 0:01:19.3]} 22...
Nxb4 {[%clk 0:00:03.5]} 23. Be4 {[%clk 0:01:16]} 23... d5 {[%clk 0:00:02.2]} 24.
a3 {[%clk 0:01:12.1]} 1-0

[Event "*** SCC Grand Prix: Titled Tuesday Blitz"]
[Site "Chess.com"]
[Date "2020.08.11"]
[Round "6"]
[White "Danfii"]
[Black "mr65"]
[Result "1-0"]
[WhiteElo "2351"]
[BlackElo "2136"]
[TimeControl "180+1"]
[EndTime "11:05:41 PDT"]
[Termination "Danfii won by resignation"]

1. e4 {[%clk 0:03:00.9]} 1... e5 {[%clk 0:02:49.3]} 2. Nf3 {[%clk 0:03:00.7]}
2... Nc6 {[%clk 0:02:48]} 3. Bc4 {[%clk 0:03:01.1]} 3... Nf6 {[%clk 0:02:45.3]}
4. d3 {[%clk 0:03:01.2]} 4... Bc5 {[%clk 0:02:41.1]} 5. O-O {[%clk 0:03:01.5]}
5... O-O {[%clk 0:02:38]} 6. Nbd2 {[%clk 0:03:01.1]} 6... d5 {[%clk 0:02:34.7]}
7. exd5 {[%clk 0:03:02]} 7... Nxd5 {[%clk 0:02:34.4]} 8. Ne4 {[%clk 0:03:02.6]}
8... Bb6 {[%clk 0:02:32.9]} 9. Re1 {[%clk 0:03:03.1]} 9... Nf4 {[%clk
0:02:20.6]} 10. Bxf4 {[%clk 0:02:55.6]} 10... exf4 {[%clk 0:02:19.6]} 11. Qd2
{[%clk 0:02:55]} 11... Bg4 {[%clk 0:02:09.5]} 12. Qxf4 {[%clk 0:02:50.2]} 12...
Bxf3 {[%clk 0:02:08.6]} 13. Qxf3 {[%clk 0:02:50.6]} 13... Nd4 {[%clk 0:02:07.1]}
14. Qd1 {[%clk 0:02:50.4]} 14... Qh4 {[%clk 0:01:59.2]} 15. c3 {[%clk
0:02:41.5]} 15... Ne6 {[%clk 0:01:56]} 16. d4 {[%clk 0:02:36.8]} 16... c6 {[%clk
0:01:43.1]} 17. Qf3 {[%clk 0:02:35.5]} 17... Bc7 {[%clk 0:01:39.1]} 18. g3
{[%clk 0:02:33.5]} 18... Ng5 {[%clk 0:01:27.9]} 19. Nxg5 {[%clk 0:02:31.8]}
19... Qxg5 {[%clk 0:01:26.3]} 20. h4 {[%clk 0:02:22.1]} 20... Qf6 {[%clk
0:01:21.7]} 21. Qxf6 {[%clk 0:02:21.3]} 21... gxf6 {[%clk 0:01:21.2]} 22. Re7
{[%clk 0:02:21.5]} 22... Rac8 {[%clk 0:01:15.3]} 23. Rae1 {[%clk 0:02:20.5]}
23... b5 {[%clk 0:01:12]} 24. Bd3 {[%clk 0:02:16.2]} 24... Bb6 {[%clk 0:01:11]}
25. b4 {[%clk 0:02:02.6]} 25... a5 {[%clk 0:01:04.2]} 26. a3 {[%clk 0:01:59.7]}
26... Bd8 {[%clk 0:00:49]} 27. Rd7 {[%clk 0:01:53.1]} 27... axb4 {[%clk
0:00:45.2]} 28. axb4 {[%clk 0:01:52.8]} 28... Bc7 {[%clk 0:00:36.7]} 29. Ree7
{[%clk 0:01:38.8]} 29... Bb8 {[%clk 0:00:33.2]} 30. Bc2 {[%clk 0:01:34.5]} 30...
Rfe8 {[%clk 0:00:26.1]} 31. Rxf7 {[%clk 0:01:30.8]} 31... Re1+ {[%clk
0:00:20.9]} 32. Kg2 {[%clk 0:01:30.7]} 32... Rce8 {[%clk 0:00:17]} 33. Rg7+
{[%clk 0:01:29.7]} 33... Kh8 {[%clk 0:00:16.6]} 34. Rxh7+ {[%clk 0:01:29.9]}
34... Kg8 {[%clk 0:00:16.7]} 35. Bb3+ {[%clk 0:01:27.6]} 1-0

[Event "*** SCC Grand Prix: Titled Tuesday Blitz"]
[Site "Chess.com"]
[Date "2020.08.11"]
[Round "6"]
[White "politeplayer"]
[Black "Aguiar94"]
[Result "0-1"]
[WhiteElo "2231"]
[BlackElo "2453"]
[TimeControl "180+1"]
[EndTime "11:05:48 PDT"]
[Termination "Aguiar94 won by resignation"]

1. e4 {[%clk 0:03:00.9]} 1... c5 {[%clk 0:02:56.9]} 2. Nf3 {[%clk 0:03:00.4]}
2... e6 {[%clk 0:02:56.6]} 3. d4 {[%clk 0:02:59.4]} 3... cxd4 {[%clk 0:02:57.5]}
4. Nxd4 {[%clk 0:02:59.2]} 4... Nc6 {[%clk 0:02:57.1]} 5. Nc3 {[%clk 0:02:58]}
5... Qc7 {[%clk 0:02:57.4]} 6. f4 {[%clk 0:02:54.3]} 6... Nxd4 {[%clk
0:02:56.1]} 7. Qxd4 {[%clk 0:02:52.4]} 7... b6 {[%clk 0:02:56.6]} 8. Nb5 {[%clk
0:02:43.2]} 8... Qc6 {[%clk 0:02:49.6]} 9. Be2 {[%clk 0:02:17.1]} 9... Bb7
{[%clk 0:02:49.4]} 10. Bd2 {[%clk 0:01:50.6]} 10... Nf6 {[%clk 0:02:14.8]} 11.
e5 {[%clk 0:01:36.1]} 11... Ne4 {[%clk 0:02:14.2]} 12. O-O-O {[%clk 0:01:21.1]}
12... Bc5 {[%clk 0:02:09.9]} 13. Qc4 {[%clk 0:01:03.3]} 13... a6 {[%clk
0:02:01.8]} 14. Nc3 {[%clk 0:00:52.8]} 14... Nxd2 {[%clk 0:01:57]} 15. Kxd2
{[%clk 0:00:31.5]} 15... Qxg2 {[%clk 0:01:53.9]} 16. Rhe1 {[%clk 0:00:22.3]}
16... Rc8 {[%clk 0:01:52.8]} 17. Qd3 {[%clk 0:00:18.9]} 17... Qxh2 {[%clk
0:01:50.5]} 18. Kc1 {[%clk 0:00:17.1]} 18... Qxf4+ {[%clk 0:01:50.6]} 19. Kb1
{[%clk 0:00:16.5]} 19... Rc7 {[%clk 0:01:47.9]} 20. Rf1 {[%clk 0:00:15.4]} 20...
Qxe5 {[%clk 0:01:47.4]} 21. Bf3 {[%clk 0:00:13.8]} 21... Bxf3 {[%clk 0:01:45.6]}
22. Qxf3 {[%clk 0:00:13.7]} 22... O-O {[%clk 0:01:45.5]} 23. Ne4 {[%clk
0:00:13.8]} 23... d5 {[%clk 0:01:43.6]} 24. Ng3 {[%clk 0:00:12.4]} 24... Bd6
{[%clk 0:01:39.3]} 25. Nh5 {[%clk 0:00:11.6]} 25... f5 {[%clk 0:01:37.6]} 26.
Rde1 {[%clk 0:00:11.4]} 26... Qh2 {[%clk 0:01:36.7]} 27. Rc1 {[%clk 0:00:09.1]}
27... g6 {[%clk 0:01:33.1]} 28. Rh1 {[%clk 0:00:09.1]} 28... Qe5 {[%clk
0:01:32.5]} 29. Rcg1 {[%clk 0:00:07.7]} 29... Qe4 {[%clk 0:01:31.2]} 30. Qf2
{[%clk 0:00:06.9]} 30... Bc5 {[%clk 0:01:30.3]} 31. Qh2 {[%clk 0:00:05.2]} 31...
Bxg1 {[%clk 0:01:29.7]} 32. Qxc7 {[%clk 0:00:05]} 32... Bd4 {[%clk 0:01:28.4]}
33. Qg7+ {[%clk 0:00:05.3]} 33... Bxg7 {[%clk 0:01:27.8]} 0-1

[Event "*** SCC Grand Prix: Titled Tuesday Blitz"]
[Site "Chess.com"]
[Date "2020.08.11"]
[Round "6"]
[White "GustavoJuarezF"]
[Black "BJthechessgod"]
[Result "1-0"]
[WhiteElo "2037"]
[BlackElo "2235"]
[TimeControl "180+1"]
[EndTime "11:05:49 PDT"]
[Termination "GustavoJuarezF won by resignation"]

1. e4 {[%clk 0:03:00.9]} 1... c5 {[%clk 0:02:56.3]} 2. Nf3 {[%clk 0:02:59.3]}
2... Nc6 {[%clk 0:02:54.7]} 3. c3 {[%clk 0:02:57.6]} 3... d5 {[%clk 0:02:54.2]}
4. exd5 {[%clk 0:02:56.2]} 4... Qxd5 {[%clk 0:02:55.1]} 5. d4 {[%clk 0:02:55]}
5... Bg4 {[%clk 0:02:53.9]} 6. Be2 {[%clk 0:02:53.8]} 6... e6 {[%clk 0:02:47.1]}
7. O-O {[%clk 0:02:47.9]} 7... Nf6 {[%clk 0:02:30.3]} 8. c4 {[%clk 0:02:43.8]}
8... Qd7 {[%clk 0:02:19.6]} 9. d5 {[%clk 0:02:40.9]} 9... exd5 {[%clk
0:02:10.9]} 10. cxd5 {[%clk 0:02:39.1]} 10... Qxd5 {[%clk 0:02:10.8]} 11. Nc3
{[%clk 0:02:36.1]} 11... Qxd1 {[%clk 0:02:10.5]} 12. Rxd1 {[%clk 0:02:35.2]}
12... Rd8 {[%clk 0:02:06.5]} 13. Bg5 {[%clk 0:02:33.3]} 13... Be7 {[%clk
0:02:05.2]} 14. Rxd8+ {[%clk 0:02:29]} 14... Bxd8 {[%clk 0:02:04.5]} 15. h3
{[%clk 0:02:15.5]} 15... Bxf3 {[%clk 0:01:56.5]} 16. Bxf3 {[%clk 0:02:14.4]}
16... h6 {[%clk 0:01:57.1]} 17. Re1+ {[%clk 0:02:09.7]} 17... Kf8 {[%clk
0:01:56]} 18. Be3 {[%clk 0:02:05.7]} 18... Be7 {[%clk 0:01:52]} 19. Na4 {[%clk
0:01:48.6]} 19... Nd7 {[%clk 0:01:41.6]} 20. Rd1 {[%clk 0:01:43]} 20... Ke8
{[%clk 0:01:35.2]} 21. Rc1 {[%clk 0:01:22.5]} 21... Nce5 {[%clk 0:00:54.7]} 22.
Bxb7 {[%clk 0:01:18.2]} 22... Nd3 {[%clk 0:00:53.2]} 23. Rc3 {[%clk 0:01:13.2]}
23... Nb4 {[%clk 0:00:53.2]} 24. a3 {[%clk 0:01:08.2]} 24... Na2 {[%clk
0:00:52.9]} 25. Rc2 {[%clk 0:00:59.3]} 25... Nb6 {[%clk 0:00:38]} 26. Nxb6
{[%clk 0:00:56.7]} 26... axb6 {[%clk 0:00:38.9]} 27. b3 {[%clk 0:00:56.4]} 27...
Kd7 {[%clk 0:00:31.4]} 28. Rxa2 {[%clk 0:00:54.9]} 28... Rb8 {[%clk 0:00:31.2]}
29. Bd5 {[%clk 0:00:53.3]} 29... f5 {[%clk 0:00:30.5]} 30. a4 {[%clk 0:00:52.3]}
30... Kd6 {[%clk 0:00:30.7]} 31. Bf4+ {[%clk 0:00:50.4]} 31... Kxd5 {[%clk
0:00:30.8]} 32. Bxb8 {[%clk 0:00:50]} 32... Bd6 {[%clk 0:00:31.7]} 33. Rd2+
{[%clk 0:00:48]} 1-0

[Event "*** SCC Grand Prix: Titled Tuesday Blitz"]
[Site "Chess.com"]
[Date "2020.08.11"]
[Round "6"]
[White "Supernotar"]
[Black "GM_dmitrij"]
[Result "0-1"]
[WhiteElo "2701"]
[BlackElo "2929"]
[TimeControl "180+1"]
[EndTime "11:05:53 PDT"]
[Termination "GM_dmitrij won by checkmate"]

1. d4 {[%clk 0:03:00.9]} 1... Nf6 {[%clk 0:03:00.3]} 2. c4 {[%clk 0:03:00.4]}
2... g6 {[%clk 0:03:00.8]} 3. Nc3 {[%clk 0:02:59]} 3... Bg7 {[%clk 0:03:01.7]}
4. e4 {[%clk 0:02:58.7]} 4... O-O {[%clk 0:03:02.6]} 5. Be2 {[%clk 0:02:59]}
5... d6 {[%clk 0:03:02.9]} 6. Nf3 {[%clk 0:02:59.1]} 6... e5 {[%clk 0:03:02.7]}
7. O-O {[%clk 0:02:59]} 7... exd4 {[%clk 0:03:03.1]} 8. Nxd4 {[%clk 0:02:58.3]}
8... Re8 {[%clk 0:03:04]} 9. f3 {[%clk 0:02:58.2]} 9... c6 {[%clk 0:03:04.9]}
10. Nc2 {[%clk 0:02:53.8]} 10... Na6 {[%clk 0:03:04.4]} 11. Kh1 {[%clk
0:02:51.8]} 11... Nc7 {[%clk 0:03:04.1]} 12. Bf4 {[%clk 0:02:48]} 12... d5
{[%clk 0:02:58]} 13. cxd5 {[%clk 0:02:46.3]} 13... cxd5 {[%clk 0:02:58.9]} 14.
Bxc7 {[%clk 0:02:41.4]} 14... Qxc7 {[%clk 0:02:59.8]} 15. exd5 {[%clk
0:02:39.5]} 15... Bf5 {[%clk 0:02:58.7]} 16. Nd4 {[%clk 0:02:37.1]} 16... Bd7
{[%clk 0:02:58.6]} 17. Rc1 {[%clk 0:02:35.9]} 17... Qf4 {[%clk 0:02:44.7]} 18.
g3 {[%clk 0:02:21]} 18... Qe5 {[%clk 0:02:36.9]} 19. f4 {[%clk 0:02:10.1]} 19...
Qd6 {[%clk 0:02:37]} 20. Bf3 {[%clk 0:02:08.5]} 20... a6 {[%clk 0:02:37.5]} 21.
a4 {[%clk 0:02:01.2]} 21... h5 {[%clk 0:02:35.4]} 22. Qb3 {[%clk 0:01:57.8]}
22... Ng4 {[%clk 0:02:32.4]} 23. Bxg4 {[%clk 0:01:31.1]} 23... hxg4 {[%clk
0:02:33.3]} 24. Rcd1 {[%clk 0:01:26.9]} 24... Rab8 {[%clk 0:02:24.5]} 25. Rd2
{[%clk 0:01:17.9]} 25... b5 {[%clk 0:02:22.3]} 26. axb5 {[%clk 0:01:18]} 26...
axb5 {[%clk 0:02:23.2]} 27. Rfd1 {[%clk 0:01:00.7]} 27... b4 {[%clk 0:02:22.3]}
28. Nce2 {[%clk 0:00:58.1]} 28... Ra8 {[%clk 0:02:21.2]} 29. Qd3 {[%clk
0:00:54.8]} 29... Qxd5+ {[%clk 0:02:19.9]} 30. Kg1 {[%clk 0:00:53.5]} 30... Rad8
{[%clk 0:02:13.2]} 31. Qb3 {[%clk 0:00:43.2]} 31... Qe4 {[%clk 0:02:12]} 32.
Qxb4 {[%clk 0:00:34.6]} 32... Bc8 {[%clk 0:02:05.9]} 33. Nc2 {[%clk 0:00:23.8]}
33... Rxd2 {[%clk 0:01:59.2]} 34. Rxd2 {[%clk 0:00:21.8]} 34... Qc6 {[%clk
0:01:50.7]} 35. Ncd4 {[%clk 0:00:17.5]} 35... Qe4 {[%clk 0:01:44.7]} 36. Nc2
{[%clk 0:00:17.2]} 36... Qf3 {[%clk 0:01:44.7]} 37. Qa3 {[%clk 0:00:09.8]} 37...
Qc6 {[%clk 0:01:37.5]} 38. Ncd4 {[%clk 0:00:07.4]} 38... Qe4 {[%clk 0:01:37.7]}
39. Nc2 {[%clk 0:00:02.7]} 39... Bb7 {[%clk 0:01:37.6]} 40. Kf1 {[%clk
0:00:03.3]} 40... Qg2+ {[%clk 0:01:36.1]} 41. Ke1 {[%clk 0:00:03.8]} 41... Qg1#
{[%clk 0:01:36.5]} 0-1

[Event "*** SCC Grand Prix: Titled Tuesday Blitz"]
[Site "Chess.com"]
[Date "2020.08.11"]
[Round "6"]
[White "VladimirBugayev"]
[Black "Evgeny81"]
[Result "0-1"]
[WhiteElo "2341"]
[BlackElo "2702"]
[TimeControl "180+1"]
[EndTime "11:05:54 PDT"]
[Termination "Evgeny81 won by resignation"]

1. e4 {[%clk 0:03:00.9]} 1... c6 {[%clk 0:03:00.2]} 2. d4 {[%clk 0:02:59]} 2...
d5 {[%clk 0:03:01.1]} 3. exd5 {[%clk 0:02:58.8]} 3... cxd5 {[%clk 0:03:01]} 4.
Bd3 {[%clk 0:02:59.4]} 4... Nc6 {[%clk 0:03:01]} 5. c3 {[%clk 0:03:00]} 5... Nf6
{[%clk 0:02:59.1]} 6. Bf4 {[%clk 0:02:57.9]} 6... Bg4 {[%clk 0:02:58.7]} 7. Qb3
{[%clk 0:02:57.2]} 7... Qd7 {[%clk 0:02:53.2]} 8. Nd2 {[%clk 0:02:56.1]} 8... e6
{[%clk 0:02:53.4]} 9. Ngf3 {[%clk 0:02:55.2]} 9... Bd6 {[%clk 0:02:53]} 10. Bxd6
{[%clk 0:02:52.1]} 10... Qxd6 {[%clk 0:02:53.9]} 11. O-O {[%clk 0:02:47.2]}
11... O-O {[%clk 0:02:52.5]} 12. Qxb7 {[%clk 0:02:41.8]} 12... Rab8 {[%clk
0:02:48.9]} 13. Qa6 {[%clk 0:02:42.2]} 13... Rb6 {[%clk 0:02:42.3]} 14. Qa3
{[%clk 0:02:35.5]} 14... Qxa3 {[%clk 0:02:41.3]} 15. bxa3 {[%clk 0:02:33.8]}
15... Bxf3 {[%clk 0:02:41.9]} 16. Nxf3 {[%clk 0:02:31.8]} 16... Rfb8 {[%clk
0:02:36]} 17. Rfb1 {[%clk 0:02:27.9]} 17... Rb2 {[%clk 0:02:35.6]} 18. h3 {[%clk
0:01:33.6]} 18... Kf8 {[%clk 0:02:33.4]} 19. a4 {[%clk 0:01:27.8]} 19... Ke7
{[%clk 0:02:14.4]} 20. Bb5 {[%clk 0:01:21.4]} 20... Rxb1+ {[%clk 0:02:13.5]} 21.
Rxb1 {[%clk 0:01:21.4]} 21... Na5 {[%clk 0:02:04.8]} 22. Rb4 {[%clk 0:01:10.2]}
22... Ne4 {[%clk 0:02:01.6]} 23. Bd3 {[%clk 0:01:10.4]} 23... Rc8 {[%clk
0:01:54.3]} 24. Rb5 {[%clk 0:01:00]} 24... Rxc3 {[%clk 0:01:36.6]} 25. Rxa5
{[%clk 0:00:55.1]} 25... Rxd3 {[%clk 0:01:36.4]} 26. Rxa7+ {[%clk 0:00:55]}
26... Ke8 {[%clk 0:01:30.2]} 27. a5 {[%clk 0:00:39.8]} 27... Ra3 {[%clk
0:01:25.7]} 28. Ne5 {[%clk 0:00:36]} 28... f6 {[%clk 0:01:16.6]} 29. Nc6 {[%clk
0:00:31.7]} 29... Rxa2 {[%clk 0:01:11]} 30. Re7+ {[%clk 0:00:25.1]} 30... Kf8
{[%clk 0:01:10.7]} 31. Rxe6 {[%clk 0:00:24]} 31... Ra1+ {[%clk 0:01:08.9]} 32.
Kh2 {[%clk 0:00:23.3]} 32... Nxf2 {[%clk 0:01:09.8]} 33. Rd6 {[%clk 0:00:19.1]}
33... Rh1+ {[%clk 0:01:06.8]} 34. Kg3 {[%clk 0:00:18.2]} 34... Ne4+ {[%clk
0:01:07.7]} 0-1

[Event "*** SCC Grand Prix: Titled Tuesday Blitz"]
[Site "Chess.com"]
[Date "2020.08.11"]
[Round "6"]
[White "AvitalBor"]
[Black "lucasmito"]
[Result "1-0"]
[WhiteElo "2832"]
[BlackElo "2616"]
[TimeControl "180+1"]
[EndTime "11:05:59 PDT"]
[Termination "AvitalBor won on time"]

1. e4 {[%clk 0:03:00.9]} 1... e5 {[%clk 0:02:59.8]} 2. Nf3 {[%clk 0:03:01.1]}
2... Nc6 {[%clk 0:02:58.7]} 3. Bb5 {[%clk 0:03:01.6]} 3... f5 {[%clk 0:02:58.3]}
4. d3 {[%clk 0:03:01.4]} 4... fxe4 {[%clk 0:02:58.8]} 5. dxe4 {[%clk 0:03:02.3]}
5... Nf6 {[%clk 0:02:59.5]} 6. Nc3 {[%clk 0:03:02.1]} 6... Bb4 {[%clk 0:03:00]}
7. Qd3 {[%clk 0:03:01.8]} 7... Bxc3+ {[%clk 0:03:00.5]} 8. bxc3 {[%clk
0:02:58.8]} 8... d6 {[%clk 0:02:59.9]} 9. Bc4 {[%clk 0:02:55.7]} 9... Na5 {[%clk
0:02:56.8]} 10. Bb3 {[%clk 0:02:55.8]} 10... Nxb3 {[%clk 0:02:56.4]} 11. axb3
{[%clk 0:02:55.2]} 11... O-O {[%clk 0:02:57.3]} 12. h3 {[%clk 0:02:55]} 12...
Qe8 {[%clk 0:02:54.7]} 13. Qc4+ {[%clk 0:02:44.9]} 13... Qf7 {[%clk 0:02:54.4]}
14. Qxf7+ {[%clk 0:02:44.9]} 14... Rxf7 {[%clk 0:02:53.4]} 15. Nd2 {[%clk
0:02:45.1]} 15... Nh5 {[%clk 0:02:41.1]} 16. Nc4 {[%clk 0:02:42.3]} 16... Be6
{[%clk 0:02:37.4]} 17. Ne3 {[%clk 0:02:39.3]} 17... Nf4 {[%clk 0:02:37.1]} 18.
c4 {[%clk 0:02:35.8]} 18... a6 {[%clk 0:02:35.5]} 19. Ba3 {[%clk 0:02:32.2]}
19... Raf8 {[%clk 0:02:15.4]} 20. c5 {[%clk 0:02:23.8]} 20... dxc5 {[%clk
0:01:55.6]} 21. Bxc5 {[%clk 0:02:23.5]} 21... Rd8 {[%clk 0:01:56.2]} 22. Bb4
{[%clk 0:02:23.6]} 22... Rd4 {[%clk 0:01:36.7]} 23. Ba3 {[%clk 0:02:22.4]} 23...
Rxe4 {[%clk 0:01:31.8]} 24. O-O {[%clk 0:02:22.5]} 24... Ne2+ {[%clk 0:01:24.1]}
25. Kh2 {[%clk 0:02:19.9]} 25... Nd4 {[%clk 0:01:23.8]} 26. Rad1 {[%clk
0:02:15.5]} 26... h5 {[%clk 0:01:19]} 27. Rd2 {[%clk 0:01:57.5]} 27... Nxb3
{[%clk 0:00:54.2]} 28. cxb3 {[%clk 0:01:57.1]} 28... Rxe3 {[%clk 0:00:54.3]} 29.
fxe3 {[%clk 0:01:58]} 29... Rxf1 {[%clk 0:00:54.2]} 30. Bb2 {[%clk 0:01:58.7]}
30... Bxb3 {[%clk 0:00:45.2]} 31. Bxe5 {[%clk 0:01:57.9]} 31... c5 {[%clk
0:00:43.8]} 32. Rd8+ {[%clk 0:01:54.7]} 32... Kh7 {[%clk 0:00:42.6]} 33. Rc8
{[%clk 0:01:54.8]} 33... b6 {[%clk 0:00:28.9]} 34. Rc6 {[%clk 0:01:51.8]} 34...
Rf2 {[%clk 0:00:15.5]} 35. e4 {[%clk 0:01:41.5]} 35... Bc2 {[%clk 0:00:07.5]}
36. Rc7 {[%clk 0:01:40.9]} 36... Bxe4 {[%clk 0:00:05.3]} 37. Rxg7+ {[%clk
0:01:40.8]} 37... Kh6 {[%clk 0:00:05.9]} 38. h4 {[%clk 0:01:40.3]} 38... c4
{[%clk 0:00:03.2]} 39. Rg5 {[%clk 0:01:40]} 39... b5 {[%clk 0:00:02.2]} 40. Bd4
{[%clk 0:01:36.1]} 40... b4 {[%clk 0:00:02.4]} 41. Bxf2 {[%clk 0:01:35.8]} 1-0